[Event "106th British-ch 2019"]
[Site "Torquay"]
[Date "2019.08.02"]
[Round "7.23"]
[White "Jaufarally, Nadia"]
[Black "Starley, Robert"]
[Result "0-1"]
[ECO "B78"]
[WhiteElo "1944"]
[BlackElo "2058"]
[Annotator "NA"]
[PlyCount "120"]
[EventDate "2019.07.27"]
[EventType "swiss"]
[EventCountry "GBR"]
[SourceTitle "playchess.com"]
[Source "ChessBase"]
[SourceQuality "1"]
[TimeControl "40/5400+30:1800+30"]

1. e4 {[%emt 0:00:00]} c5 {[%emt 0:00:00]} 2. Nf3 {[%emt 0:00:00]} Nc6 {[%emt 0:00:00]} 3. d4 {[%emt 0:00:47]} cxd4 {[%emt 0:00:00]} 4. Nxd4 {[%emt 0:00:06]} d6 {[%emt 0:00:42]} 5. Nc3 {[%emt 0:02:09]} Nf6 {[%emt 0:01:13]} 6. f3 {[%emt 0:03:11]} g6 {[%emt 0:00:55]} 7. Be3 {[%emt 0:02:47]} Bg7 {[%emt 0:00:36]} 8. Bc4 {[%emt 0:02:14]} O-O {[%emt 0:01:02]} 9. Bb3 {[%emt 0:00:28]} Bd7 {[%emt 0:04:10]} 10. Qd2 {[%emt 0:00:31]} Na5 {[%emt 0:05:28]} 11. O-O-O {[%emt 0:01:11]} Nxb3+ {[%emt 0:00:22]} 12. cxb3 {[%emt 0:01:13]} a6 {[%emt 0:04:11]} 13. Kb1 {[%emt 0:11:37]} Re8 {[%emt 0:02:28]} 14. h4 {[%emt 0:03:33]} Qa5 {[%emt 0:03:42]} 15. h5 {[%emt 0:05:12]} Nxh5 {[%emt 0:18:51]} 16. g4 {[%emt 0:10:39]} Nf6 {[%emt 0:00:00]} 17. Bh6 {[%emt 0:00:21]} Bh8 {[%emt 0:00:00]} 18. Nf5 {[%emt 0:03:59]} Bxf5 {[%emt 0:00:00]} 19. gxf5 {[%emt 0:00:29]} Rac8 {[%emt 0:01:17]} 20. Qh2 {[%emt 0:08:53]} Nh5 {[%emt 0:24:38]} 21. Nd5 {[%emt 0:08:14]} e6 {[%emt 0:03:08]} 22. Qxh5 {[%emt 0:07:15]} exd5 {[%emt 0:00:00]} 23. fxg6 {[%emt 0:01:49]} hxg6 {[%emt 0:00:00]} 24. Rhg1 {[%emt 0:10:58]} Re6 {[%emt 0:09:29]} 25. Qh3 {[%emt 0:08:11]} Rce8 {[%emt 0:04:03]} 26. Rxd5 {[%emt 0:02:46]} Qb6 {[%emt 0:01:21]} 27. Rh1 {[%emt 0:00:19]} Bf6 {[%emt 0:03:49]} 28. Bg5 {[%emt 0:02:47]} Bg7 {[%emt 0:00:32]} 29. Qh7+ {[%emt 0:00:57]} Kf8 {[%emt 0:00:04]} 30. Bh6 {[%emt 0:00:10]} Bxh6 {[%emt 0:00:08]} 31. Qxh6+ {[%emt 0:00:11]} Ke7 {[%emt 0:00:06]} 32. Qg5+ {[%emt 0:00:20]} Kd7 {[%emt 0:00:13]} 33. Rh7 {[%emt 0:01:58]} R8e7 {[%emt 0:00:52]} 34. Qf4 {[%emt 0:01:04]} Qg1+ {[%emt 0:03:27]} 35. Kc2 {[%emt 0:00:10]} Qf2+ {[%emt 0:00:23]} 36. Rd2 {[%emt 0:00:32]} Qc5+ {[%emt 0:00:05]} 37. Kd1 {[%emt 0:00:25]} g5 {[%emt 0:03:05]} 38. Qg3 {[%emt 0:00:32]} Qe3 {[%emt 0:01:21]} 39. Rg7 {[%emt 0:00:46]} Re5 {[%emt 0:01:56]} 40. Qh3+ {[%emt 0:00:40]} Kc7 {[%emt 0:01:57]} 41. Qf1 {[%emt 0:04:58]} Rc5 {[%emt 0:00:52]} 42. b4 {[%emt 0:05:37]} Rc6 {[%emt 0:00:21]} 43. Qg2 {[%emt 0:00:35]} Rc4 {[%emt 0:03:23]} 44. Qg3 {[%emt 0:03:02]} Rd4 {[%emt 0:01:09]} 45. Qg2 {[%emt 0:03:28]} Rxd2+ {[%emt 0:00:47]} 46. Qxd2 {[%emt 0:00:07]} Qxf3+ {[%emt 0:00:21]} 47. Kc1 {[%emt 0:00:29]} Qh1+ {[%emt 0:00:47]} 48. Qd1 {[%emt 0:01:07]} Qxe4 {[%emt 0:04:21]} 49. Rxg5 {[%emt 0:03:34]} Qf4+ {[%emt 0:00:40]} 50. Qd2 {[%emt 0:00:06]} Re1+ {[%emt 0:01:52]} 51. Kc2 {[%emt 0:00:09]} Qe4+ {[%emt 0:00:13]} 52. Kb3 {[%emt 0:01:05]} Re3+ {[%emt 0:06:15]} 53. Ka4 {[%emt 0:00:08]} Qc6+ {[%emt 0:01:12]} 54. b5 {[%emt 0:07:13]} axb5+ {[%emt 0:02:22]} 55. Rxb5 {[%emt 0:00:19]} Re5 {[%emt 0:01:59]} 56. Qd3 {[%emt 0:03:15]} f5 {[%emt 0:02:49]} 57. Kb4 {[%emt 0:02:11]} Rxb5+ {[%emt 0:00:17]} 58. Qxb5 {[%emt 0:00:06]} Qxb5+ {[%emt 0:00:05]} 59. Kxb5 {[%emt 0:00:03]} f4 {[%emt 0:00:56]} 60. Kc4 {[%emt 0:00:11]} d5+ {[%emt 0:00:37]} 0-1

[Event "106th British-ch 2019"]
[Site "Torquay"]
[Date "2019.08.02"]
[Round "7.25"]
[White "Wall, Tim P"]
[Black "Kahn, Tito"]
[Result "1-0"]
[ECO "B40"]
[WhiteElo "2246"]
[BlackElo "1921"]
[Annotator "NA"]
[PlyCount "59"]
[EventDate "2019.07.27"]
[EventType "swiss"]
[EventCountry "GBR"]
[SourceTitle "playchess.com"]
[Source "ChessBase"]
[SourceQuality "1"]
[TimeControl "40/5400+30:1800+30"]

1. e4 {[%emt 0:00:00]} c5 {[%emt 0:00:00]} 2. Nf3 {[%emt 0:00:07]} e6 {[%emt 0:00:00]} 3. b3 {[%emt 0:01:12]} a6 {[%emt 0:04:07]} 4. Bb2 {[%emt 0:01:53]} Nc6 {[%emt 0:00:39]} 5. Bd3 {[%emt 0:01:29]} d6 {[%emt 0:01:28]} 6. O-O {[%emt 0:00:25]} Nf6 {[%emt 0:00:49]} 7. Re1 {[%emt 0:02:01]} Be7 {[%emt 0:00:12]} 8. Bf1 {[%emt 0:02:51]} O-O {[%emt 0:11:25]} 9. d4 {[%emt 0:01:24]} cxd4 {[%emt 0:01:40]} 10. Nxd4 {[%emt 0:00:10]} Nxd4 {[%emt 0:01:14]} 11. Qxd4 {[%emt 0:00:22]} e5 {[%emt 0:01:06]} 12. Qd2 {[%emt 0:03:05]} Be6 {[%emt 0:18:42]} 13. c4 {[%emt 0:03:02]} Nh5 {[%emt 0:03:38]} 14. g3 {[%emt 0:07:55]} f5 {[%emt 0:05:27]} 15. exf5 {[%emt 0:01:08]} Rxf5 {[%emt 0:09:07]} 16. Bh3 {[%emt 0:03:28]} Qd7 {[%emt 0:00:20]} 17. Bxf5 {[%emt 0:00:48]} Bxf5 {[%emt 0:00:01]} 18. Nc3 {[%emt 0:00:50]} h6 {[%emt 0:01:50]} 19. Rad1 {[%emt 0:07:52]} Rd8 {[%emt 0:08:01]} 20. Nd5 {[%emt 0:08:25]} Bg5 {[%emt 0:01:47]} 21. Qe2 {[%emt 0:01:38]} Qf7 {[%emt 0:01:59]} 22. Bc1 {[%emt 0:10:40]} Nf6 {[%emt 0:13:42]} 23. Bxg5 {[%emt 0:11:30]} hxg5 {[%emt 0:00:02]} 24. f3 {[%emt 0:03:59]} Be6 {[%emt 0:04:26]} 25. Qd2 {[%emt 0:04:01]} Nh5 {[%emt 0:04:35]} 26. Qxg5 {[%emt 0:02:26]} Rf8 {[%emt 0:00:06]} 27. Rf1 {[%emt 0:02:53]} Bh3 {[%emt 0:00:21]} 28. Rf2 {[%emt 0:00:41]} e4 {[%emt 0:00:34]} 29. g4 {[%emt 0:04:15]} e3 {[%emt 0:01:40]} 30. Qxe3 {[%emt 0:03:48]} 1-0

[Event "106th British-ch 2019"]
[Site "Torquay"]
[Date "2019.08.02"]
[Round "7.26"]
[White "Donaldson, Thomas"]
[Black "Villiers, Thomas"]
[Result "0-1"]
[ECO "A40"]
[WhiteElo "2065"]
[BlackElo "2218"]
[Annotator "NA"]
[PlyCount "64"]
[EventDate "2019.07.27"]
[EventType "swiss"]
[EventCountry "GBR"]
[SourceTitle "playchess.com"]
[Source "ChessBase"]
[SourceQuality "1"]
[TimeControl "40/5400+30:1800+30"]

1. d4 {[%emt 0:00:00]} e6 {[%emt 0:00:00]} 2. c4 {[%emt 0:00:00]} b6 {[%emt 0:00:00]} 3. e4 {[%emt 0:00:32]} Bb7 {[%emt 0:00:00]} 4. Nc3 {[%emt 0:00:17]} Bb4 {[%emt 0:00:00]} 5. Bd3 {[%emt 0:00:07]} f5 {[%emt 0:00:27]} 6. f3 {[%emt 0:00:16]} fxe4 {[%emt 0:00:37]} 7. fxe4 {[%emt 0:00:14]} Bxc3+ {[%emt 0:00:43]} 8. bxc3 {[%emt 0:00:15]} Nf6 {[%emt 0:00:50]} 9. d5 {[%emt 0:03:01]} e5 {[%emt 0:01:50]} 10. Nf3 {[%emt 0:04:48]} d6 {[%emt 0:00:41]} 11. O-O {[%emt 0:05:15]} Bc8 {[%emt 0:00:46]} 12. Nh4 {[%emt 0:01:56]} O-O {[%emt 0:00:31]} 13. Nf5 {[%emt 0:02:39]} Bxf5 {[%emt 0:00:23]} 14. exf5 {[%emt 0:01:51]} Nbd7 {[%emt 0:00:24]} 15. g4 {[%emt 0:04:53]} e4 {[%emt 0:00:11]} 16. Bc2 {[%emt 0:00:22]} Nc5 {[%emt 0:00:41]} 17. g5 {[%emt 0:03:03]} Nfd7 {[%emt 0:00:06]} 18. Be3 {[%emt 0:06:31]} Qe7 {[%emt 0:00:36]} 19. Qh5 {[%emt 0:10:12]} Rae8 {[%emt 0:03:23]} 20. Rf4 {[%emt 0:15:25]} Qe5 {[%emt 0:04:30]} 21. Raf1 {[%emt 0:14:06]} Qxc3 {[%emt 0:01:02]} 22. Bxc5 {[%emt 0:05:09]} bxc5 {[%emt 0:00:38]} 23. Rh4 {[%emt 0:03:04]} Qe3+ {[%emt 0:00:16]} 24. Kh1 {[%emt 0:01:27]} h6 {[%emt 0:00:15]} 25. f6 {[%emt 0:00:46]} Re5 {[%emt 0:02:02]} 26. f7+ {[%emt 0:14:22]} Kh8 {[%emt 0:01:58]} 27. Rg1 {[%emt 0:01:04]} Qf3+ {[%emt 0:07:02]} 28. Qxf3 {[%emt 0:00:12]} exf3 {[%emt 0:00:04]} 29. gxh6 {[%emt 0:00:35]} g5 {[%emt 0:00:08]} 30. Re4 {[%emt 0:02:01]} Rxf7 {[%emt 0:00:15]} 31. Rf1 {[%emt 0:00:36]} Rxe4 {[%emt 0:00:31]} 32. Bxe4 {[%emt 0:00:06]} Ne5 {[%emt 0:00:01]} 0-1

[Event "106th British-ch 2019"]
[Site "Torquay"]
[Date "2019.08.03"]
[Round "8.3"]
[White "Gordon, Stephen J"]
[Black "Tan, Justin Hy"]
[Result "1-0"]
[ECO "D45"]
[WhiteElo "2516"]
[BlackElo "2513"]
[Annotator "ChessBase"]
[PlyCount "73"]
[EventDate "2019.07.27"]
[EventType "swiss"]
[EventCountry "GBR"]
[SourceTitle "playchess.com"]
[Source "ChessBase"]
[SourceQuality "1"]
[TimeControl "40/5400+30:1800+30"]

1. c4 {[%emt 0:01:33]} c6 {[%emt 0:00:00]} 2. Nf3 {[%emt 0:00:36]} d5 {[%emt 0:00:00]} 3. e3 {[%emt 0:00:04]} Nf6 {[%emt 0:00:00]} 4. Nc3 {[%emt 0:01:09]} e6 {[%emt 0:00:05]} 5. b3 {[%emt 0:00:50]} Bd6 {[%emt 0:01:11]} 6. Bb2 {[%emt 0:00:49]} O-O {[%emt 0:03:18]} 7. Qc2 {[%emt 0:11:50]} Qe7 {[%emt 0:05:47]} 8. d4 {[%emt 0:09:15]} Nbd7 {[%emt 0:01:48]} 9. Be2 {[%emt 0:21:39]} b6 {[%emt 0:01:24]} 10. O-O {[%emt 0:01:05]} Bb7 {[%emt 0:00:05]} 11. Rfe1 {[%emt 0:05:13]} Rac8 {[%emt 0:02:45]} 12. e4 {[%emt 0:01:18]} dxe4 {[%emt 0:02:49]} 13. Nxe4 {[%emt 0:00:57]} Nxe4 {[%emt 0:14:11]} 14. Qxe4 {[%emt 0:00:02]} Nf6 {[%emt 0:00:11]} 15. Qh4 {[%emt 0:04:37]} Bb4 {[%emt 0:03:27]} 16. Red1 {[%emt 0:03:19]} Ba3 {[%emt 0:03:08]} 17. Bc3 {[%emt 0:06:39]} c5 {[%emt 0:04:29]} 18. Ne5 {[%emt 0:01:36]} Rfd8 {[%emt 0:02:42]} 19. Bh5 {[%emt 0:05:49]} Rf8 {[%emt 0:09:38]} 20. Bf3 {[%emt 0:04:26]} Bxf3 {[%emt 0:10:12]} 21. Nxf3 {[%emt 0:00:49]} cxd4 {[%emt 0:01:44]} 22. Bxd4 {[%emt 0:00:01]} Rfd8 {[%emt 0:00:18]} 23. Rd3 {[%emt 0:02:02]} Bb2 {[%emt 0:06:01]} 24. Rad1 {[%emt 0:00:32]} Bxd4 {[%emt 0:00:05]} 25. Rxd4 {[%emt 0:01:06]} h6 {[%emt 0:01:39]} 26. h3 {[%emt 0:04:43]} Kf8 {[%emt 0:01:39]} 27. Ne5 {[%emt 0:01:06]} Qc7 {[%emt 0:04:10]} 28. b4 {[%emt 0:01:58]} Ke8 {[%emt 0:04:57]} 29. Qg3 {[%emt 0:02:08]} Rxd4 {[%emt 0:02:15]} 30. Rxd4 {[%emt 0:00:02]} a5 {[%emt 0:04:30]} 31. b5 {[%emt 0:01:26]} Qc5 {[%emt 0:00:07]} 32. Nc6 {[%emt 0:01:16]} Kf8 {[%emt 0:03:33]} 33. Qd6+ {[%emt 0:00:34]} Qxd6 {[%emt 0:00:11]} 34. Rxd6 {[%emt 0:00:02]} g5 {[%emt 0:03:06]} 35. f3 {[%emt 0:01:39]} Kg7 {[%emt 0:02:20]} 36. c5 {[%emt 0:02:24]} Nd5 {[%emt 0:01:01]} 37. Rxd5 {[%emt 0:00:23]} 1-0

[Event "106th British-ch 2019"]
[Site "Torquay"]
[Date "2019.08.03"]
[Round "8.4"]
[White "Fernandez, Daniel Howard"]
[Black "Palliser, Richard Jd"]
[Result "0-1"]
[ECO "A02"]
[WhiteElo "2466"]
[BlackElo "2399"]
[Annotator "ChessBase"]
[PlyCount "86"]
[EventDate "2019.07.27"]
[EventType "swiss"]
[EventCountry "GBR"]
[SourceTitle "playchess.com"]
[Source "ChessBase"]
[SourceQuality "1"]
[TimeControl "40/5400+30:1800+30"]

1. f4 {[%emt 0:00:07]} d6 {[%emt 0:02:32]} 2. b3 {[%emt 0:04:36]} e5 {[%emt 0:00:39]} 3. fxe5 {[%emt 0:00:28]} dxe5 {[%emt 0:00:03]} 4. g3 {[%emt 0:02:07]} h5 {[%emt 0:03:44]} 5. Bb2 {[%emt 0:04:22]} h4 {[%emt 0:02:07]} 6. Bg2 {[%emt 0:01:37]} hxg3 {[%emt 0:00:56]} 7. hxg3 {[%emt 0:01:19]} Rxh1 {[%emt 0:00:08]} 8. Bxh1 {[%emt 0:00:03]} Qg5 {[%emt 0:00:08]} 9. Kf2 {[%emt 0:02:45]} Nf6 {[%emt 0:01:17]} 10. Nc3 {[%emt 0:11:26]} e4 {[%emt 0:21:17]} 11. e3 {[%emt 0:14:06]} Ng4+ {[%emt 0:16:01]} 12. Ke1 {[%emt 0:00:38]} Qh5 {[%emt 0:01:45]} 13. Bxe4 {[%emt 0:00:07]} Qh2 {[%emt 0:00:08]} 14. Qf3 {[%emt 0:00:02]} Qxg1+ {[%emt 0:00:11]} 15. Ke2 {[%emt 0:00:01]} Qh2+ {[%emt 0:00:20]} 16. Qg2 {[%emt 0:00:01]} Qxg2+ {[%emt 0:01:02]} 17. Bxg2 {[%emt 0:00:01]} c6 {[%emt 0:01:09]} 18. Bh3 {[%emt 0:00:02]} Na6 {[%emt 0:00:34]} 19. Ne4 {[%emt 0:00:38]} Bf5 {[%emt 0:06:49]} 20. Nf2 {[%emt 0:00:02]} Nh6 {[%emt 0:00:19]} 21. Bxf5 {[%emt 0:02:14]} Nxf5 {[%emt 0:00:39]} 22. g4 {[%emt 0:00:02]} Nd6 {[%emt 0:04:59]} 23. Rh1 {[%emt 0:00:27]} f6 {[%emt 0:02:18]} 24. g5 {[%emt 0:00:38]} fxg5 {[%emt 0:00:37]} 25. Ng4 {[%emt 0:00:55]} Nc5 {[%emt 0:03:03]} 26. c4 {[%emt 0:01:35]} Nf5 {[%emt 0:10:28]} 27. Rh8 {[%emt 0:01:23]} O-O-O {[%emt 0:01:03]} 28. d4 {[%emt 0:00:06]} Ne4 {[%emt 0:01:53]} 29. Kf3 {[%emt 0:03:49]} Nd2+ {[%emt 0:01:34]} 30. Ke2 {[%emt 0:00:19]} Ne4 {[%emt 0:00:03]} 31. Kf3 {[%emt 0:00:06]} Nf6 {[%emt 0:00:19]} 32. Nxf6 {[%emt 0:00:31]} gxf6 {[%emt 0:00:01]} 33. e4 {[%emt 0:00:30]} Nh4+ {[%emt 0:05:04]} 34. Kg4 {[%emt 0:00:23]} Be7 {[%emt 0:00:31]} 35. Rh7 {[%emt 0:00:10]} Re8 {[%emt 0:00:11]} 36. e5 {[%emt 0:01:16]} fxe5 {[%emt 0:06:02]} 37. dxe5 {[%emt 0:00:25]} Bd8 {[%emt 0:00:27]} 38. Rh6 {[%emt 0:01:52]} Rf8 {[%emt 0:02:52]} 39. Bc1 {[%emt 0:03:34]} Nf3 {[%emt 0:01:30]} 40. e6 {[%emt 0:00:30]} Ne5+ {[%emt 0:00:06]} 41. Kg3 {[%emt 0:30:28]} Rf6 {[%emt 0:32:33]} 42. Bxg5 {[%emt 0:00:18]} Rf3+ {[%emt 0:02:43]} 43. Kh4 {[%emt 0:00:12]} Rf4+ {[%emt 0:00:00]} 0-1

[Event "106th British-ch 2019"]
[Site "Torquay"]
[Date "2019.08.03"]
[Round "8.5"]
[White "Eggleston, David J"]
[Black "Emms, John M"]
[Result "0-1"]
[ECO "B36"]
[WhiteElo "2399"]
[BlackElo "2481"]
[Annotator "ChessBase"]
[PlyCount "160"]
[EventDate "2019.07.27"]
[EventType "swiss"]
[EventCountry "GBR"]
[SourceTitle "playchess.com"]
[Source "ChessBase"]
[SourceQuality "1"]
[TimeControl "40/5400+30:1800+30"]

1. e4 {[%emt 0:01:48]} c5 {[%emt 0:00:07]} 2. Nf3 {[%emt 0:00:05]} Nc6 {[%emt 0:00:08]} 3. d4 {[%emt 0:00:04]} cxd4 {[%emt 0:00:05]} 4. Nxd4 {[%emt 0:00:04]} g6 {[%emt 0:00:34]} 5. c4 {[%emt 0:03:26]} Nf6 {[%emt 0:00:28]} 6. Nc3 {[%emt 0:00:25]} d6 {[%emt 0:00:09]} 7. Be2 {[%emt 0:00:16]} Nxd4 {[%emt 0:00:29]} 8. Qxd4 {[%emt 0:00:22]} Bg7 {[%emt 0:00:05]} 9. Be3 {[%emt 0:00:14]} O-O {[%emt 0:00:10]} 10. Qd2 {[%emt 0:00:14]} a5 {[%emt 0:01:00]} 11. O-O {[%emt 0:00:19]} a4 {[%emt 0:00:29]} 12. Rac1 {[%emt 0:00:14]} Qa5 {[%emt 0:00:54]} 13. f4 {[%emt 0:00:41]} Bd7 {[%emt 0:01:41]} 14. h3 {[%emt 0:15:07]} Bc6 {[%emt 0:02:12]} 15. Bf3 {[%emt 0:01:22]} Nd7 {[%emt 0:25:58]} 16. Kh1 {[%emt 0:26:19]} Rfd8 {[%emt 0:09:47]} 17. Rfd1 {[%emt 0:08:56]} Nc5 {[%emt 0:08:58]} 18. Bd4 {[%emt 0:07:17]} e5 {[%emt 0:05:10]} 19. Be3 {[%emt 0:00:07]} exf4 {[%emt 0:00:22]} 20. Bxf4 {[%emt 0:00:09]} Ne6 {[%emt 0:01:07]} 21. Be3 {[%emt 0:01:53]} Qb4 {[%emt 0:08:55]} 22. Qe2 {[%emt 0:06:22]} a3 {[%emt 0:03:59]} 23. bxa3 {[%emt 0:00:20]} Qxa3 {[%emt 0:01:07]} 24. Rc2 {[%emt 0:07:05]} Be5 {[%emt 0:10:41]} 25. Nb5 {[%emt 0:02:22]} Bxb5 {[%emt 0:01:48]} 26. cxb5 {[%emt 0:00:02]} Rdc8 {[%emt 0:02:09]} 27. Rdc1 {[%emt 0:04:56]} Rxc2 {[%emt 0:00:06]} 28. Rxc2 {[%emt 0:00:10]} Nd4 {[%emt 0:03:49]} 29. Bxd4 {[%emt 0:00:06]} Bxd4 {[%emt 0:00:01]} 30. Qd1 {[%emt 0:06:38]} Be5 {[%emt 0:01:23]} 31. Qd2 {[%emt 0:01:50]} Kg7 {[%emt 0:01:24]} 32. Qf2 {[%emt 0:02:24]} Qd3 {[%emt 0:02:31]} 33. Qe2 {[%emt 0:01:07]} Qd4 {[%emt 0:00:43]} 34. Qd1 {[%emt 0:01:07]} Qb4 {[%emt 0:01:49]} 35. Qf1 {[%emt 0:01:07]} Ra3 {[%emt 0:03:14]} 36. Qe2 {[%emt 0:02:07]} Qd4 {[%emt 0:01:07]} 37. Rd2 {[%emt 0:00:38]} Qc3 {[%emt 0:00:52]} 38. Rc2 {[%emt 0:00:33]} Qa1+ {[%emt 0:01:49]} 39. Qd1 {[%emt 0:00:03]} Rxa2 {[%emt 0:00:25]} 40. Rxa2 {[%emt 0:00:52]} Qxa2 {[%emt 0:00:06]} 41. Be2 {[%emt 0:05:07]} Qa3 {[%emt 0:04:39]} 42. Bd3 {[%emt 0:01:04]} h5 {[%emt 0:01:32]} 43. Qf3 {[%emt 0:02:37]} Qc1+ {[%emt 0:03:23]} 44. Qf1 {[%emt 0:02:56]} Qe3 {[%emt 0:01:38]} 45. Qf3 {[%emt 0:00:14]} Qe1+ {[%emt 0:00:23]} 46. Bf1 {[%emt 0:01:37]} h4 {[%emt 0:07:36]} 47. Qd3 {[%emt 0:01:47]} b6 {[%emt 0:06:35]} 48. Qf3 {[%emt 0:00:55]} Kg8 {[%emt 0:00:25]} 49. Qd3 {[%emt 0:02:39]} Kh7 {[%emt 0:00:59]} 50. Qf3 {[%emt 0:00:29]} Kg7 {[%emt 0:00:03]} 51. Qd3 {[%emt 0:00:06]} Kh6 {[%emt 0:00:56]} 52. Qf3 {[%emt 0:00:12]} f6 {[%emt 0:00:13]} 53. Qd3 {[%emt 0:00:47]} Kg5 {[%emt 0:03:35]} 54. Kg1 {[%emt 0:02:49]} Bf4 {[%emt 0:01:27]} 55. Qf3 {[%emt 0:00:38]} Be3+ {[%emt 0:00:43]} 56. Kh1 {[%emt 0:00:27]} Qg3 {[%emt 0:01:51]} 57. Bd3 {[%emt 0:01:05]} Qe1+ {[%emt 0:00:20]} 58. Qf1 {[%emt 0:00:28]} Qxf1+ {[%emt 0:00:11]} 59. Bxf1 {[%emt 0:00:36]} Kf4 {[%emt 0:00:04]} 60. Bd3 {[%emt 0:00:13]} Kg3 {[%emt 0:00:51]} 61. Bc2 {[%emt 0:01:02]} f5 {[%emt 0:00:35]} 62. exf5 {[%emt 0:00:41]} gxf5 {[%emt 0:00:04]} 63. Be4 {[%emt 0:05:18]} f4 {[%emt 0:00:49]} 64. Bc6 {[%emt 0:00:28]} Bc5 {[%emt 0:00:17]} 65. Bb7 {[%emt 0:00:13]} Kf2 {[%emt 0:00:12]} 66. Kh2 {[%emt 0:00:04]} Ke2 {[%emt 0:00:23]} 67. Bc6 {[%emt 0:00:12]} Kd3 {[%emt 0:00:17]} 68. Kh1 {[%emt 0:01:01]} Kc4 {[%emt 0:00:13]} 69. Kh2 {[%emt 0:00:15]} d5 {[%emt 0:00:16]} 70. Kh1 {[%emt 0:00:04]} Be3 {[%emt 0:00:18]} 71. g4 {[%emt 0:00:19]} fxg3 {[%emt 0:00:23]} 72. Kg2 {[%emt 0:00:05]} d4 {[%emt 0:02:02]} 73. Kf1 {[%emt 0:00:16]} d3 {[%emt 0:00:48]} 74. Ke1 {[%emt 0:00:25]} Kd4 {[%emt 0:00:16]} 75. Kd1 {[%emt 0:00:17]} Bg5 {[%emt 0:00:24]} 76. Ke1 {[%emt 0:00:49]} Ke3 {[%emt 0:00:40]} 77. Bb7 {[%emt 0:00:09]} d2+ {[%emt 0:00:32]} 78. Kd1 {[%emt 0:00:06]} Kf2 {[%emt 0:00:06]} 79. Ba8 {[%emt 0:00:04]} g2 {[%emt 0:00:09]} 80. Bxg2 {[%emt 0:00:04]} Kxg2 {[%emt 0:00:05]} 0-1

[Event "106th British-ch 2019"]
[Site "Torquay"]
[Date "2019.08.03"]
[Round "8.6"]
[White "Derakhshani, Borna"]
[Black "Williams, Simon K"]
[Result "1/2-1/2"]
[ECO "A01"]
[WhiteElo "2300"]
[BlackElo "2468"]
[Annotator "ChessBase"]
[PlyCount "69"]
[EventDate "2019.07.27"]
[EventType "swiss"]
[EventCountry "GBR"]
[SourceTitle "playchess.com"]
[Source "ChessBase"]
[SourceQuality "1"]
[TimeControl "40/5400+30:1800+30"]

1. b3 {[%emt 0:00:00]} e5 {[%emt 0:00:38]} 2. Bb2 {[%emt 0:00:00]} Nc6 {[%emt 0:01:06]} 3. e3 {[%emt 0:00:00]} d6 {[%emt 0:01:12]} 4. c4 {[%emt 0:02:42]} g6 {[%emt 0:01:59]} 5. Nf3 {[%emt 0:02:45]} Bg7 {[%emt 0:00:44]} 6. d4 {[%emt 0:00:14]} Bf5 {[%emt 0:09:19]} 7. Nbd2 {[%emt 0:06:48]} exd4 {[%emt 0:09:38]} 8. Nxd4 {[%emt 0:00:09]} Nxd4 {[%emt 0:00:26]} 9. Bxd4 {[%emt 0:00:04]} Bxd4 {[%emt 0:00:22]} 10. exd4 {[%emt 0:00:03]} Qf6 {[%emt 0:00:34]} 11. Nf3 {[%emt 0:01:28]} g5 {[%emt 0:01:47]} 12. Bd3 {[%emt 0:06:21]} Ne7 {[%emt 0:04:59]} 13. O-O {[%emt 0:06:10]} O-O-O {[%emt 0:03:28]} 14. d5 {[%emt 0:05:37]} Bg4 {[%emt 0:02:52]} 15. Re1 {[%emt 0:04:33]} Rde8 {[%emt 0:02:22]} 16. Rc1 {[%emt 0:02:05]} Bxf3 {[%emt 0:02:21]} 17. Qxf3 {[%emt 0:00:04]} Qxf3 {[%emt 0:00:06]} 18. gxf3 {[%emt 0:00:02]} Ng6 {[%emt 0:00:16]} 19. Bxg6 {[%emt 0:00:08]} hxg6 {[%emt 0:00:05]} 20. Re3 {[%emt 0:06:31]} Kd7 {[%emt 0:01:03]} 21. Rce1 {[%emt 0:01:58]} Rxe3 {[%emt 0:01:13]} 22. fxe3 {[%emt 0:00:00]} a5 {[%emt 0:00:58]} 23. Kg2 {[%emt 0:00:00]} Ke7 {[%emt 0:03:31]} 24. Kg3 {[%emt 0:00:00]} f5 {[%emt 0:08:22]} 25. h3 {[%emt 0:03:29]} Kf6 {[%emt 0:00:19]} 26. e4 {[%emt 0:00:25]} f4+ {[%emt 0:01:15]} 27. Kg2 {[%emt 0:00:28]} Ke5 {[%emt 0:00:21]} 28. Rd1 {[%emt 0:00:22]} Ra8 {[%emt 0:02:18]} 29. a4 {[%emt 0:02:20]} Ra6 {[%emt 0:09:01]} 30. Rd3 {[%emt 0:00:09]} Rb6 {[%emt 0:00:07]} 31. Kf2 {[%emt 0:00:17]} Rb4 {[%emt 0:00:53]} 32. Ke2 {[%emt 0:00:26]} c5 {[%emt 0:00:57]} 33. Rc3 {[%emt 0:01:55]} Rb6 {[%emt 0:00:08]} 34. Rd3 {[%emt 0:00:08]} Ra6 {[%emt 0:00:30]} 35. Kf2 {[%emt 0:00:13]} 1/2-1/2

[Event "106th British-ch 2019"]
[Site "Torquay"]
[Date "2019.08.03"]
[Round "8.7"]
[White "Arkell, Keith C"]
[Black "Wadsworth, Matthew J"]
[Result "1-0"]
[ECO "A22"]
[WhiteElo "2461"]
[BlackElo "2418"]
[Annotator "ChessBase"]
[PlyCount "83"]
[EventDate "2019.07.27"]
[EventType "swiss"]
[EventCountry "GBR"]
[SourceTitle "playchess.com"]
[Source "ChessBase"]
[SourceQuality "1"]
[TimeControl "40/5400+30:1800+30"]

1. c4 {[%emt 0:00:16]} e5 {[%emt 0:01:28]} 2. Nc3 {[%emt 0:00:05]} Bb4 {[%emt 0:01:06]} 3. g3 {[%emt 0:00:22]} Bxc3 {[%emt 0:02:34]} 4. bxc3 {[%emt 0:00:05]} Nc6 {[%emt 0:01:12]} 5. Bg2 {[%emt 0:00:07]} Nf6 {[%emt 0:02:30]} 6. e4 {[%emt 0:00:11]} d6 {[%emt 0:01:46]} 7. d3 {[%emt 0:00:09]} O-O {[%emt 0:09:46]} 8. Ne2 {[%emt 0:00:17]} a6 {[%emt 0:06:59]} 9. a4 {[%emt 0:00:06]} Be6 {[%emt 0:28:28]} 10. O-O {[%emt 0:07:05]} Qc8 {[%emt 0:00:05]} 11. f4 {[%emt 0:00:21]} exf4 {[%emt 0:01:28]} 12. Nxf4 {[%emt 0:04:40]} Ne5 {[%emt 0:01:35]} 13. h3 {[%emt 0:03:22]} Ng6 {[%emt 0:07:03]} 14. Kh2 {[%emt 0:00:52]} Rb8 {[%emt 0:00:38]} 15. a5 {[%emt 0:01:56]} Re8 {[%emt 0:03:41]} 16. Be3 {[%emt 0:05:48]} Ne5 {[%emt 0:04:49]} 17. Ba7 {[%emt 0:02:01]} Ra8 {[%emt 0:00:21]} 18. Bd4 {[%emt 0:00:09]} Nfd7 {[%emt 0:05:49]} 19. Qd2 {[%emt 0:08:49]} Nc5 {[%emt 0:01:46]} 20. Qe3 {[%emt 0:01:06]} Ncd7 {[%emt 0:02:51]} 21. Qd2 {[%emt 0:08:12]} Nc5 {[%emt 0:01:43]} 22. Rab1 {[%emt 0:00:26]} Bd7 {[%emt 0:02:32]} 23. Rf2 {[%emt 0:02:20]} Ne6 {[%emt 0:02:32]} 24. Nh5 {[%emt 0:03:37]} f6 {[%emt 0:03:34]} 25. Be3 {[%emt 0:03:47]} Rf8 {[%emt 0:00:20]} 26. Nf4 {[%emt 0:04:18]} c6 {[%emt 0:00:28]} 27. Qd1 {[%emt 0:03:40]} Ng5 {[%emt 0:02:01]} 28. Bd4 {[%emt 0:02:59]} Rf7 {[%emt 0:01:01]} 29. Rfb2 {[%emt 0:01:58]} Be6 {[%emt 0:01:13]} 30. Qf1 {[%emt 0:02:09]} Re7 {[%emt 0:02:05]} 31. h4 {[%emt 0:01:21]} Ng4+ {[%emt 0:00:13]} 32. Kh1 {[%emt 0:00:21]} Nf7 {[%emt 0:00:17]} 33. Nxe6 {[%emt 0:00:15]} Qxe6 {[%emt 0:01:19]} 34. Rxb7 {[%emt 0:00:20]} Rxb7 {[%emt 0:00:41]} 35. Rxb7 {[%emt 0:00:06]} c5 {[%emt 0:00:46]} 36. Bg1 {[%emt 0:02:43]} Nfe5 {[%emt 0:00:30]} 37. Qf5 {[%emt 0:02:21]} Qxf5 {[%emt 0:00:17]} 38. exf5 {[%emt 0:00:04]} Nxd3 {[%emt 0:00:39]} 39. Bd5+ {[%emt 0:00:22]} Kh8 {[%emt 0:00:07]} 40. Rb6 {[%emt 0:01:06]} Re8 {[%emt 0:00:52]} 41. Rxa6 {[%emt 0:30:44]} h5 {[%emt 0:30:13]} 42. Ra8 {[%emt 0:00:59]} 1-0